[Event "41st BAN National Women Chess-ch 2022"]
[Site "Dhaka"]
[Date "2022.11.22"]
[Round "6.1"]
[White "Khan, Nazrana"]
[Black "Hamid, Rani"]
[Result "0-1"]
[ECO "E53"]
[WhiteElo "1908"]
[BlackElo "1760"]
[Annotator "TA"]
[PlyCount "62"]
[EventDate "2022.11.17"]
[EventCountry "BAN"]
[SourceTitle "playchess.com"]
[Source "ChessBase"]
[SourceQuality "1"]
[TimeControl "40/5400+30:1800+30"]

{[%evp 18,62,12,20,23,19,34,0,0,0,39,-25,0,-32,-32,-85,9,0,49,-156,-59,-167,68,-69,131,-143,-136,-139,-145,-279,-281,-273,-254,-514,-496,-513,-473,-493,-475,-1185,-1185,-1132,-1131,-1020,-560,-2960,-2713]} 1. d4 {[%emt 0:00:06]} Nf6 {[%emt 0:02:35]} 2. c4 {[%emt 0:00:09]} e6 {[%emt 0:00:05]} 3. Nc3 {[%emt 0:00:18]} Bb4 {[%emt 0:00:08]} 4. e3 {[%emt 0:00:10]} O-O {[%emt 0:00:19]} 5. Bd3 {[%emt 0:00:12]} c5 {[%emt 0:01:31]} 6. Nf3 {[%emt 0:00:29]} d5 {[%emt 0:00:35]} 7. O-O {[%emt 0:00:57]} Nbd7 {[%emt 0:02:50]} 8. cxd5 {[%emt 0:02:38]} exd5 {[%emt 0:00:42]} 9. a3 {[%emt 0:04:47]} Bxc3 {[%emt 0:02:35]} 10. bxc3 {[%emt 0:01:31]} c4 {[%emt 0:01:46] E53: Nimzo-Indian: Rubinstein: Main Line (4...0-0 5 Nf3 d5 6 Bd3 c5 7 0-0).} 11. Bc2 {[%emt 0:01:41]} Re8 {[%emt 0:00:45][%cal Bf8e8,Be8e6,Be6h6][%mdl 32]} 12. Bb2 {[%emt 0:08:39]} Ne4 {[%emt 0:03:50] [#] The position is equal.} 13. Qe2 $146 {[%emt 0:18:00]} ({Predecessor:} 13. Nd2 Nxd2 14. Qxd2 Nf6 15. f3 Bd7 16. a4 Bc6 17. Rfe1 b6 18. Re2 Qc7 19. Qe1 {0-1 (46) Schwarz,H-Kobza,A Gluecksburg 1988}) 13... Re6 {[%emt 0:04:37]} 14. Rab1 {[%emt 0:09:40]} (14. Nd2 $14) 14... Qe7 {[%emt 0:04:45]} 15. Rfd1 {[%emt 0:08:50]} Rh6 {[%emt 0:04:13]} 16. g3 {[%emt 0:03:22]} ({White should play} 16. Nd2 $15) 16... Ndf6 {[%emt 0:04:43] Black is much more active.} ({Black should try} 16... Nb6 $17 {aiming for ...Bg4.} 17. Nd2 Bf5 18. Nxe4 Bxe4) 17. Ne5 $11 {[%emt 0:00:54] Prevents Bg4.} Ng5 {[%emt 0:03:20]} (17... Rh3 $11 {was preferrable.}) 18. f4 $2 {[%emt 0:03:42] [#]} (18. f3 $1 $14) 18... Nh3+ {[%emt 0:04:15]} (18... Nge4 19. Rdc1 $17) (18... Bg4 $1 $17 {[%mdl 512]} 19. Qg2 (19. Nxg4 Nh3+ 20. Kh1 Nxg4 $17) 19... Nf3+ $1 {[%mdl 512]} 20. Nxf3 Qxe3+ 21. Qf2 Qxf3) 19. Kg2 {[%emt 0:00:53] [#]} (19. Kh1 $15) 19... Ne8 $2 {[%emt 0:00:39] Pair of Knights!} (19... Ng4 $1 $19 {[%cal Oh3f4][%mdl 512] Hoping for ...Nxf4+!} 20. Rh1 (20. Nxg4 $2 Bxg4 21. Qd2 Bxd1 $19) 20... f6 $1 21. Nxg4 Bxg4) 20. Re1 {[%emt 0:02:45]} (20. Bc1 $14) 20... Nd6 $2 {[%emt 0:06:44] [#]} (20... f6 $1 $15 {stays ahead.} 21. Ng4 Bxg4 22. Qxg4 Nf2) 21. Ng4 $2 {[%emt 0:05:52][%mdl 8192]} (21. a4 $1 $16 {and life is bright.}) 21... Bxg4 $17 {[%emt 0:00:13]} 22. Qxg4 {[%emt 0:00:10]} Nf2 {[%emt 0:00:29]} ({And not} 22... Ne4 23. Qf5 $15) 23. Qg5 {[%emt 0:02:40] [#]} (23. Qe2 $17 Nfe4 24. Kg1) 23... Qe6 $1 $19 {[%emt 0:04:33] The board is on fire.} 24. f5 {[%emt 0:04:04]} Qd7 {[%emt 0:00:06]} 25. Kxf2 $2 {[%emt 0:09:35]} (25. Qxh6 gxh6 26. Kxf2) 25... Rxh2+ {[%emt 0:00:15] Black is clearly winning.} 26. Kg1 {[%emt 0:01:16]} Rxc2 {[%emt 0:00:28]} 27. f6 {[%emt 0:02:50][%csl Gf6][%cal Rg5g7]} Ne8 {[%emt 0:00:58]} 28. Rf1 {[%emt 0:04:12]} (28. Rec1 $142 h6 29. Qf4 Rxc1+ 30. Rxc1 Nxf6 31. Rf1) 28... Qh3 {[%emt 0:00:58][%csl Gc2][%cal Rh3h2]} 29. Rf2 {[%emt 0:00:24] Prevents Qh2+.} Rxf2 {[%emt 0:00:23]} 30. Kxf2 {[%emt 0:00:14]} Nxf6 {[%emt 0:01:33] ( -> ...Ne4+)} 31. Qh4 {[%emt 0:01:12]} Qf5+ {[%emt 0:45:07] Weighted Error Value: White=1.41/Black=0.70} 0-1

[Event "41st BAN National Women Chess-ch 2022"]
[Site "Dhaka"]
[Date "2022.11.22"]
[Round "6.2"]
[White "Ahmed, Walijah"]
[Black "Jannatul, Ferdous"]
[Result "1-0"]
[ECO "B12"]
[WhiteElo "1977"]
[BlackElo "1861"]
[Annotator "TA"]
[PlyCount "63"]
[EventDate "2022.11.17"]
[EventCountry "BAN"]
[SourceTitle "playchess.com"]
[Source "ChessBase"]
[SourceQuality "1"]
[TimeControl "40/5400+30:1800+30"]

{[%evp 13,62,25,21,32,36,26,50,24,35,43,49,12,73,82,147,151,159,158,195,144,143,76,86,0,0,0,920,898,840,659,29991,29992,29992,136,29993,29994,29994,266,29995,29996,29996,29996,29996,29997,29997,29981,29979,12837,12836,12836,29999]} 1. e4 {[%emt 0:04:07]} c6 {[%emt 0:00:24]} 2. d4 {[%emt 0:00:07]} d5 {[%emt 0:00:03]} 3. e5 {[%emt 0:00:14]} Bf5 {[%emt 0:00:05]} 4. h4 {[%emt 0:00:22]} h5 {[%emt 0:01:03]} 5. c4 {[%emt 0:00:36]} e6 {[%emt 0:00:11]} 6. Nc3 {[%emt 0:00:22]} Nd7 {[%emt 0:01:16]} 7. cxd5 {[%emt 0:03:44]} cxd5 {[%emt 0:01:13]} 8. Bd3 $1 {[%emt 0:00:50] 8.Bd3 scores better than 8.Bg5. B12: Caro-Kann: Advance Variation.} Bxd3 {[%emt 0:01:47]} 9. Qxd3 {[%emt 0:00:08]} Ne7 {[%emt 0:00:59]} 10. Nge2 {[%emt 0:04:03] White is slightly better.} Nf5 {[%emt 0:04:17]} 11. Bg5 {[%emt 0:02:01] [#]} Be7 $146 {[%emt 0:11:00]} ({Predecessor:} 11... Qb6 12. f3 Rc8 13. g4 hxg4 14. fxg4 Ne7 15. O-O-O Nc6 16. Kb1 Na5 17. Rhf1 Nc4 {1-0 (35) Blackman,J (2192)-Turincio Garcia,S (2155) Chess.com INT 2020}) 12. Bxe7 {[%emt 0:01:52]} (12. Nxd5 $5 Nxe5 13. dxe5 (13. Qb5+ Nc6 $11) 13... Qxd5 14. Qxd5 exd5 15. O-O-O $14) 12... Qxe7 {[%emt 0:06:39]} (12... Nxe7 $11 {keeps the balance.} 13. g3 Qb6) 13. Nxd5 $1 $16 {[%emt 0:24:31]} exd5 {[%emt 0:00:02]} (13... Qd8 $142) 14. Qxf5 {[%emt 0:00:07]} Qb4+ {[%emt 0:00:11]} 15. Kf1 {[%emt 0:00:09] Hoping for Rh3.} Qxb2 {[%emt 0:02:07] [#]} 16. Rb1 $40 {[%emt 0:02:48][%mdl 128] White has strong attack.} ({White should try} 16. Re1 $1 $18) 16... Qxa2 {[%emt 0:00:11]} 17. e6 {[%emt 0:00:40] White is more active.} ({White should play} 17. Rh3) 17... fxe6 {[%emt 0:10:37]} 18. Qg6+ {[%emt 0:06:05]} (18. Qxe6+ $16 Kd8 19. Re1 (19. Rc1 $2 Re8 $19)) 18... Kf8 $11 {[%emt 0:28:47]} 19. Rh3 {[%emt 0:18:19]} Qa6 $2 {[%emt 0:03:29][%mdl 8192]} (19... Rh6 $11 20. Rf3+ Kg8 21. Qf7+ Kh7) 20. Rf3+ $18 {[%emt 0:03:31]} Nf6 {[%emt 0:03:15]} 21. Kg1 {[%emt 0:01:12] Rxf6+ would kill now.} Re8 {[%emt 0:05:54]} 22. Rxf6+ {[%emt 0:03:45]} ({Weaker is} 22. Rg3 Re7 23. Nf4 Rh6 $14) 22... gxf6 {[%emt 0:02:57]} 23. Qxf6+ {[%emt 0:00:06]} Kg8 {[%emt 0:00:04] [#] Black cannot hold the game after this.} 24. Rb3 {[%emt 0:00:23] Inhibits Qd3.} Kh7 {[%emt 0:12:01]} (24... Qa1+ 25. Kh2) 25. Qf7+ {[%emt 0:01:28]} Kh6 {[%emt 0:00:05] [#]} 26. Rf3 $1 {[%emt 0:01:25][%cal Rf3f6]} e5 {[%emt 0:02:42]} (26... Qa1+ 27. Kh2) 27. Rf6+ {[%emt 0:00:07]} Qxf6 {[%emt 0:00:07]} 28. Qxf6+ {[%emt 0:00:03]} Kh7 {[%emt 0:00:02]} 29. Qf5+ {[%emt 0:00:18]} Kg7 {[%emt 0:00:41]} 30. Qg5+ {[%emt 0:00:44]} (30. dxe5 $142 Rhf8 31. Qg5+ Kh8 32. Qxh5+ Kg7 33. Qg5+ Kh8 34. Nd4 b5 35. e6) 30... Kf7 {[%emt 0:00:18]} 31. dxe5 {[%emt 0:00:12]} Rhg8 {[%emt 0:02:25]} 32. Qf6# {[%emt 0:00:07] Weighted Error Value: White=0.29 (precise) /Black=0.87} 1-0

[Event "41st BAN National Women Chess-ch 2022"]
[Site "Dhaka"]
[Date "2022.11.22"]
[Round "6.3"]
[White "Kazi Zarin, Tasnim"]
[Black "Noshin, Anjum"]
[Result "1/2-1/2"]
[ECO "C54"]
[WhiteElo "1860"]
[BlackElo "1907"]
[Annotator "TA"]
[PlyCount "24"]
[EventDate "2022.11.17"]
[EventCountry "BAN"]
[SourceTitle "playchess.com"]
[Source "ChessBase"]
[SourceQuality "1"]
[TimeControl "40/5400+30:1800+30"]

{[%evp 23,24,0,0]} 1. e4 {[%emt 0:00:02] Fernandez,D} e5 {[%emt 0:09:46]} 2. Nf3 {[%emt 0:00:09]} Nc6 {[%emt 0:00:09]} 3. Bc4 {[%emt 0:00:06]} Bc5 {[%emt 0:00:05]} 4. c3 {[%emt 0:00:06]} Nf6 {[%emt 0:00:31]} 5. d4 {[%emt 0:00:07]} exd4 {[%emt 0:00:06]} 6. cxd4 {[%emt 0:00:06]} Bb4+ {[%emt 0:00:05]} 7. Bd2 {[%emt 0:00:04]} Bxd2+ {[%emt 0:00:06]} 8. Nbxd2 {[%emt 0:00:04]} d5 {[%emt 0:00:07]} 9. exd5 {[%emt 0:00:06]} Nxd5 {[%emt 0:00:05]} 10. Qb3 {[%emt 0:00:31]} Na5 {[%emt 0:00:13]} 11. Qa4+ {[%emt 0:00:07]} Nc6 {[%emt 0:00:05]} 12. Qb3 {[%emt 0:00:12] [#]} Na5 $146 {[%emt 0:00:05]} ({Predecessor:} 12... Nce7 13. O-O O-O 14. Rfe1 c6 15. Ne4 Nb6 16. Bd3 Ned5 17. Nc5 Nf6 18. Rac1 Rb8 19. Qa3 a6 20. Qb3 Qc7 21. Ne4 Nfd5 22. Nc3 Qd6 23. Be4 {½-½ (36) Jones,G (2640)-Karjakin,S (2753) Wijk aan Zee 2018 CBM 183 [Fernandez,D]}) 1/2-1/2

[Event "41st BAN National Women Chess-ch 2022"]
[Site "Dhaka"]
[Date "2022.11.22"]
[Round "6.4"]
[White "Warsia, Khusbu"]
[Black "Tasnia Tarannum, Orpa"]
[Result "0-1"]
[ECO "B12"]
[WhiteElo "1540"]
[BlackElo "1662"]
[Annotator "NA RC COMBH"]
[PlyCount "124"]
[EventDate "2022.11.17"]
[EventCountry "BAN"]
[SourceTitle "playchess.com"]
[Source "ChessBase"]
[SourceQuality "1"]
[TimeControl "40/5400+30:1800+30"]

1. e4 {[%emt 0:02:00]} c6 {[%emt 0:00:06]} 2. d4 {[%emt 0:00:15]} d5 {[%emt 0:00:05]} 3. e5 {[%emt 0:00:04]} Bf5 {[%emt 0:00:08]} 4. Bd3 {[%emt 0:00:05]} Bxd3 {[%emt 0:00:06]} 5. Qxd3 {[%emt 0:00:05]} e6 {[%emt 0:00:05]} 6. Ne2 {[%emt 0:00:05]} Nd7 {[%emt 0:00:45]} 7. O-O {[%emt 0:01:21]} Ne7 {[%emt 0:01:46]} 8. Nd2 {[%emt 0:00:53]} Nf5 {[%emt 1:31:29]} 9. c4 {[%emt 0:02:47]} dxc4 {[%emt 0:00:00]} 10. Qxc4 {[%emt 0:00:18]} Nb6 {[%emt 0:00:00]} 11. Qd3 {[%emt 0:02:21]} Be7 {[%emt 0:00:00]} 12. Ne4 {[%emt 0:03:15]} O-O {[%emt 0:00:00]} 13. Rd1 {[%emt 0:00:11]} Qc7 {[%emt 0:00:00]} 14. Bg5 {[%emt 0:03:07]} Rad8 {[%emt 0:00:00]} 15. g4 {[%emt 0:07:50]} Nh4 {[%emt 0:00:00]} 16. Nf6+ {[%emt 0:03:47]} gxf6 {[%emt 0:00:00]} 17. exf6 {[%emt 0:00:02]} Bd6 {[%emt 0:00:00]} 18. Bxh4 {[%emt 0:00:17]} Nd5 {[%emt 0:00:00]} 19. Qh3 {[%emt 0:08:40]} Kh8 {[%emt 0:00:00]} 20. Bg5 {[%emt 0:15:32]} Rg8 {[%emt 0:00:00]} 21. Qh4 {[%emt 0:00:33]} Rg6 {[%emt 0:00:00]} 22. Rd3 {[%emt 0:02:57]} Nf4 {[%emt 0:00:00]} 23. Nxf4 {[%emt 0:11:02]} Bxf4 {[%emt 0:00:00]} 24. Bxf4 {[%emt 0:00:19]} Qxf4 {[%emt 0:00:00]} 25. h3 {[%emt 0:00:02]} Rxd4 {[%emt 0:00:00]} 26. Rad1 {[%emt 0:00:18]} Rd5 {[%emt 0:00:00]} 27. Qg3 {[%emt 0:01:49]} Rxf6 {[%emt 0:00:00]} 28. Rxd5 {[%emt 0:03:30]} Qxg3+ {[%emt 0:00:00]} 29. fxg3 {[%emt 0:00:06]} exd5 {[%emt 0:00:00]} 30. Rd3 {[%emt 0:00:39]} Re6 {[%emt 0:00:00]} 31. Rb3 {[%emt 0:02:57]} b6 {[%emt 0:00:00]} 32. Kf2 {[%emt 0:00:48]} Kg7 {[%emt 0:00:00]} 33. Ra3 {[%emt 0:00:22]} a5 {[%emt 0:00:00]} 34. Rb3 {[%emt 0:00:28]} c5 {[%emt 0:00:00]} 35. Rd3 {[%emt 0:01:27]} d4 {[%emt 0:00:00]} 36. a4 {[%emt 0:00:06]} Kf6 {[%emt 0:00:00]} 37. Kf3 {[%emt 0:00:13]} Ke5 {[%emt 0:00:00]} 38. b3 {[%emt 0:00:54]} Kd5 {[%emt 0:00:00]} 39. Kf4 {[%emt 0:00:44]} c4 {[%emt 0:00:00]} 40. bxc4+ {[%emt 0:00:05]} Kxc4 {[%emt 0:00:00]} 41. Rd1 {[%emt 0:30:18]} Kc3 {[%emt 0:06:00]} 42. Rc1+ {[%emt 0:00:25]} Kd2 {[%emt 0:00:38]} 43. Rc7 {[%emt 0:00:08]} d3 {[%emt 0:01:39]} 44. Rxf7 {[%emt 0:01:36]} Rd6 {[%emt 0:00:06]} 45. Kf3 {[%emt 0:01:53]} Kc2 {[%emt 0:00:24]} 46. Rc7+ {[%emt 0:00:14]} Kd1 {[%emt 0:01:04]} 47. Kf2 {[%emt 0:00:25]} h6 {[%emt 0:01:45]} 48. h4 {[%emt 0:00:14]} d2 {[%emt 0:00:21]} 49. g5 {[%emt 0:00:04]} hxg5 {[%emt 0:00:21]} 50. hxg5 {[%emt 0:00:04]} Rg6 {[%emt 0:00:38]} 51. Rd7 {[%emt 0:02:31]} Kc2 {[%emt 0:00:30]} 52. Rc7+ {[%emt 0:07:16]} Kd1 {[%emt 0:00:50]} 53. Rd7 {[%emt 0:00:10]} Rxg5 {[%emt 0:00:06]} 54. Rd4 {[%emt 0:03:42]} Re5 {[%emt 0:00:55]} 55. g4 {[%emt 0:00:31]} Re2+ {[%emt 0:00:09]} 56. Kf3 {[%emt 0:00:11]} Ke1 {[%emt 0:00:13]} 57. g5 {[%emt 0:00:22]} d1=Q {[%emt 0:00:08]} 58. Rxd1+ {[%emt 0:00:11]} Kxd1 {[%emt 0:00:04]} 59. Kf4 {[%emt 0:00:04]} Kc2 {[%emt 0:00:13]} 60. g6 {[%emt 0:00:10]} Kb3 {[%emt 0:00:06]} 61. Kf5 {[%emt 0:00:09]} Kxa4 {[%emt 0:00:07]} 62. g7 {[%emt 0:00:03]} Rg2 {[%emt 0:00:04]} 0-1

[Event "41st BAN National Women Chess-ch 2022"]
[Site "Dhaka"]
[Date "2022.11.22"]
[Round "6.5"]
[White "Sabiha, Marjana"]
[Black "Nusrat Jahan, Alo"]
[Result "0-1"]
[ECO "A05"]
[WhiteElo "1267"]
[BlackElo "1710"]
[Annotator "NA COMBH"]
[PlyCount "84"]
[EventDate "2022.11.17"]
[EventCountry "BAN"]
[SourceTitle "playchess.com"]
[Source "ChessBase"]
[SourceQuality "1"]
[TimeControl "40/5400+30:1800+30"]

1. Nf3 {[%emt 0:00:13]} Nf6 {[%emt 0:00:37]} 2. g3 {[%emt 0:00:15]} c5 {[%emt 0:00:15]} 3. d3 {[%emt 0:00:25]} d5 {[%emt 0:00:16]} 4. b3 {[%emt 0:00:56]} Nc6 {[%emt 0:00:32]} 5. Bb2 {[%emt 0:00:31]} e6 {[%emt 0:01:32]} 6. Bg2 {[%emt 0:00:23]} Bd6 {[%emt 0:01:14]} 7. Nbd2 {[%emt 0:01:02]} O-O {[%emt 0:05:20]} 8. O-O {[%emt 0:00:50]} h6 {[%emt 0:03:42]} 9. c3 {[%emt 0:02:12]} e5 {[%emt 0:04:30]} 10. e4 {[%emt 0:05:19]} d4 {[%emt 0:04:15]} 11. Nc4 {[%emt 0:01:52]} b5 {[%emt 0:11:29]} 12. Nxd6 {[%emt 0:02:58]} Qxd6 {[%emt 0:00:12]} 13. a3 {[%emt 0:04:17]} Be6 {[%emt 0:02:34]} 14. Qc2 {[%emt 0:07:13]} Rac8 {[%emt 0:05:15]} 15. c4 {[%emt 0:01:48]} bxc4 {[%emt 0:09:14]} 16. bxc4 {[%emt 0:00:31]} Rb8 {[%emt 0:00:33]} 17. Bc1 {[%emt 0:00:23]} Na5 {[%emt 0:03:44]} 18. Nd2 {[%emt 0:10:56]} Nd7 {[%emt 0:02:32]} 19. Rb1 {[%emt 0:09:00]} Rxb1 {[%emt 0:02:15]} 20. Nxb1 {[%emt 0:00:33]} Rb8 {[%emt 0:00:33]} 21. f4 {[%emt 0:03:42]} f6 {[%emt 0:01:16]} 22. f5 {[%emt 0:01:34]} Bf7 {[%emt 0:01:15]} 23. Nd2 {[%emt 0:02:34]} Qb6 {[%emt 0:02:16]} 24. Bf3 {[%emt 0:04:00]} Be8 {[%emt 0:07:00]} 25. Qd1 {[%emt 0:03:43]} Nb3 {[%emt 0:30:39]} 26. Nxb3 {[%emt 0:00:43]} Qxb3 {[%emt 0:00:00]} 27. Qe2 {[%emt 0:00:37]} Qc3 {[%emt 0:00:00]} 28. Bg2 {[%emt 0:14:19]} Rb3 {[%emt 0:00:00]} 29. Rd1 {[%emt 0:01:22]} Rb1 {[%emt 0:00:00]} 30. Qe1 {[%emt 0:04:42]} Bh5 {[%emt 0:00:00]} 31. Bd2 {[%emt 0:08:07]} Rxd1 {[%emt 0:00:00]} 32. Bxc3 {[%emt 0:02:02]} dxc3 {[%emt 0:00:00]} 33. Kf2 {[%emt 0:01:22]} Rxe1 {[%emt 0:00:00]} 34. Kxe1 {[%emt 0:00:11]} Nb6 {[%emt 0:00:00]} 35. Bf1 {[%emt 0:00:12]} Na4 {[%emt 0:00:00]} 36. Be2 {[%emt 0:00:12]} c2 {[%emt 0:00:00]} 37. Kd2 {[%emt 0:03:50]} Bxe2 {[%emt 0:00:00]} 38. Kxc2 {[%emt 0:04:41]} Kf7 {[%emt 0:06:30]} 39. Kd2 {[%emt 0:00:00]} Bf1 {[%emt 0:00:00]} 40. Kc2 {[%emt 0:00:00]} g6 {[%emt 0:00:00]} 41. fxg6+ {[%emt 0:28:36]} Kxg6 {[%emt 0:19:37]} 42. Kd2 {[%emt 0:01:02]} Nb2 {[%emt 0:00:09]} 0-1

[Event "41st BAN National Women Chess-ch 2022"]
[Site "Dhaka"]
[Date "2022.11.22"]
[Round "6.6"]
[White "Wadifa, Ahmed"]
[Black "Talukder, Umme Taslima Protiva"]
[Result "1-0"]
[ECO "B90"]
[WhiteElo "1656"]
[BlackElo "1780"]
[Annotator "NA RC COMBH"]
[PlyCount "63"]
[EventDate "2022.11.17"]
[EventCountry "BAN"]
[SourceTitle "playchess.com"]
[Source "ChessBase"]
[SourceQuality "1"]
[TimeControl "40/5400+30:1800+30"]

1. e4 {[%emt 0:04:57]} c5 {[%emt 0:00:08]} 2. Nf3 {[%emt 0:00:06]} d6 {[%emt 0:00:06]} 3. d4 {[%emt 0:00:05]} cxd4 {[%emt 0:00:18]} 4. Nxd4 {[%emt 0:00:15]} Nf6 {[%emt 0:00:15]} 5. Nc3 {[%emt 0:00:16]} a6 {[%emt 0:00:15]} 6. f3 {[%emt 0:01:02]} Nc6 {[%emt 0:02:02]} 7. Be3 {[%emt 0:00:43]} e5 {[%emt 0:01:27]} 8. Nb3 {[%emt 0:00:14]} Be7 {[%emt 0:00:51]} 9. Qd2 {[%emt 0:00:11]} O-O {[%emt 0:02:11]} 10. O-O-O {[%emt 0:01:08]} Be6 {[%emt 0:02:53]} 11. Nd5 {[%emt 0:04:05]} Bxd5 {[%emt 0:02:00]} 12. exd5 {[%emt 0:00:04]} Nb8 {[%emt 0:01:28]} 13. g4 {[%emt 0:01:36]} Nbd7 {[%emt 0:05:35]} 14. g5 {[%emt 0:03:08]} Nh5 {[%emt 0:01:58]} 15. h4 {[%emt 0:00:11]} Ng3 {[%emt 0:05:33]} 16. Rg1 {[%emt 0:01:04]} Nxf1 {[%emt 0:00:29]} 17. Rdxf1 {[%emt 0:00:23]} Rc8 {[%emt 0:05:45]} 18. h5 {[%emt 0:03:34]} g6 {[%emt 0:02:27]} 19. Rh1 {[%emt 0:02:56]} Kg7 {[%emt 0:09:34]} 20. Kb1 {[%emt 0:02:18]} Nb6 {[%emt 0:06:13]} 21. f4 {[%emt 0:02:41]} f5 {[%emt 0:07:04]} 22. gxf6+ {[%emt 0:01:35]} Rxf6 {[%emt 0:00:40]} 23. hxg6 {[%emt 0:03:50]} hxg6 {[%emt 0:05:57]} 24. Bxb6 {[%emt 0:11:32]} Qxb6 {[%emt 0:00:12]} 25. f5 {[%emt 0:00:07]} gxf5 {[%emt 0:05:09]} 26. Qg5+ {[%emt 0:00:24]} Kf7 {[%emt 0:00:05]} 27. Qh5+ {[%emt 0:00:07]} Rg6 {[%emt 0:05:02]} 28. Qxf5+ {[%emt 0:01:00]} Bf6 {[%emt 0:02:15]} 29. Rh7+ {[%emt 0:00:48]} Rg7 {[%emt 0:00:46]} 30. Qxf6+ {[%emt 0:00:20]} Ke8 {[%emt 0:00:15]} 31. Qf8+ {[%emt 0:00:07]} Kd7 {[%emt 0:00:10]} 32. Rxg7# {[%emt 0:00:09]} 1-0

[Event "41st BAN National Women Chess-ch 2022"]
[Site "Dhaka"]
[Date "2022.11.24"]
[Round "7.1"]
[White "Talukder, Umme Taslima Protiva"]
[Black "Khan, Nazrana"]
[Result "0-1"]
[ECO "D00"]
[WhiteElo "1780"]
[BlackElo "1908"]
[Annotator "TA"]
[PlyCount "60"]
[EventDate "2022.11.17"]
[EventCountry "BAN"]
[SourceTitle "playchess.com"]
[Source "ChessBase"]
[SourceQuality "1"]
[TimeControl "40/5400+30:1800+30"]

{[%evp 9,59,-46,-47,-62,-63,-102,-63,-82,-47,-152,-56,-27,-18,-58,-13,-16,-25,0,14,-70,-70,-225,-243,-222,-186,-186,-184,-183,-177,-467,-444,-683,-679,-731,-768,-1113,-1067,-1013,-350,-29982,-2958,-29983,-29984,-29992,-29992,-29992,-29993,-29995,-29996,-29997,-29998,-29999]} 1. d4 {[%emt 0:00:04]} d5 {[%emt 0:00:05]} 2. Bf4 {[%emt 0:00:18]} Nf6 {[%emt 0:00:18]} 3. e3 {[%emt 0:00:06]} c5 {[%emt 0:00:09]} 4. dxc5 {[%emt 0:00:33]} Nc6 {[%emt 0:01:23]} 5. c3 {[%emt 0:00:57]} e5 {[%emt 0:00:51]} 6. Bg5 {[%emt 0:03:06] D00: 1 d4 d5: Unusual lines.} Bxc5 {[%emt 0:00:40] [#]} 7. Ne2 $146 {[%emt 0:03:13]} ({Predecessor:} 7. Nf3 Be6 8. Bb5 Qc7 9. Nbd2 Be7 10. O-O O-O 11. Bxf6 Bxf6 12. e4 Rad8 13. Qe2 {1-0 (37) Zhafyarov,A (2111)-Vaishali,R (2272) Kazan 2017}) 7... O-O {[%emt 0:03:41] Strongly threatening ...d4. Black is more active.} 8. Bxf6 {[%emt 0:01:21] Black is slightly better.} gxf6 {[%emt 0:00:15]} 9. Qc2 {[%emt 0:02:15] [#]} (9. Nd2 $15) 9... Kh8 {[%emt 0:01:51]} (9... d4 $1 $17 {[%cal Rd4d3] White must now prevent ...d3.} 10. cxd4 Nb4) 10. Nd2 $15 {[%emt 0:01:29]} Rg8 {[%emt 0:01:31][%cal Bf8g8,Bg8g7,Bg7g5][%mdl 32]} 11. Nb3 {[%emt 0:00:51] Prevents d4.} Bf8 {[%emt 0:04:59]} 12. Ng3 {[%emt 0:11:13]} Be6 {[%emt 0:04:22]} 13. Bd3 {[%emt 0:02:47]} Rg7 {[%emt 0:01:40]} (13... e4 $5 {[%cal Re4d3]} 14. Bb5 Qb6 $15) 14. f3 {[%emt 0:14:11]} ({Better is} 14. Rd1 $11) 14... a5 {[%emt 0:04:16] And now ...a4 would win.} 15. Nh5 $2 {[%emt 0:06:52] Inhibits a4. Now White is beyond hope.} (15. O-O $15) 15... Rg5 $19 {[%emt 0:00:45]} 16. g4 {[%emt 0:00:34]} e4 {[%emt 0:05:09] Against h3} 17. Be2 {[%emt 0:10:28]} exf3 {[%emt 0:02:01]} 18. Bxf3 {[%emt 0:01:29]} Ne5 {[%emt 0:07:41]} ({Weaker is} 18... Bxg4 19. Bxg4 a4 20. Nd4 Rxg4 21. O-O-O $15) 19. Rf1 {[%emt 0:14:08]} (19. Qe2 {is a better defense.}) 19... Bxg4 {[%emt 0:03:48]} 20. Nxf6 {[%emt 0:10:14]} (20. Bxg4 $142 Nxg4 21. Nxf6 Nxf6 22. Nd4) 20... Bf5 {[%emt 0:03:10]} 21. e4 {[%emt 0:02:24]} Qxf6 {[%emt 0:03:50]} 22. exf5 {[%emt 0:01:18]} Nxf3+ {[%emt 0:01:58]} 23. Rxf3 {[%emt 0:00:13]} Bh6 $2 {[%emt 0:03:29]} (23... Rg1+ 24. Kf2 Qb6+ 25. Re3 Rxa1 26. Nxa1 Re8) 24. Nd2 $2 {[%emt 0:03:48] [#]} (24. Qd3 $19 Rg2 25. Qd4 Qxd4 26. Nxd4 Re8+ 27. Kf1 Rxh2 28. Kg1 Rxb2 29. f6) 24... Qe5+ {[%emt 0:03:10]} (24... Re8+ $142 25. Kf1 Reg8 26. Rg3 Rxf5+ 27. Qxf5 Qxf5+ 28. Kg2 Bxd2 29. Rxg8+ Kxg8 30. Rf1 Qe4+ 31. Kf2 Be3+ 32. Ke2 Bg5+ 33. Kf2 Qf4+ 34. Kg1 Qg4+ 35. Kf2 Bh4+ 36. Ke3 Qe4+ 37. Kd2 Bg5+ 38. Rf4 Bxf4+ 39. Kd1 Bg5 40. h3 Qd3+ 41. Ke1 Bh4#) 25. Kd1 {[%emt 0:00:37]} Rg2 {[%emt 0:00:58] Black mates.} 26. b3 {[%emt 0:04:38]} Qe2+ {[%emt 0:01:19]} 27. Kc1 {[%emt 0:00:04]} Qxf3 {[%emt 0:00:35]} 28. c4 {[%emt 0:01:26]} Rxd2 {[%emt 0:01:25]} 29. Qxd2 {[%emt 0:00:14]} Qc3+ {[%emt 0:00:40]} 30. Kd1 {[%emt 0:00:04]} Qxd2# {[%emt 0:00:12] Weighted Error Value: White=1.05/Black=0.35} 0-1